bitfinex/quotes_SOLUSD_20220306
["timestamp","ask_amount","ask_price","bid_price","bid_amount"]
[1646569566561,59.08126238,87.179,87.147,23.92839604]
[1646569566962,59.08126238,87.179,87.138,47.59796638]
[1646569567361,59.08126238,87.179,87.139,2.83613526]
[1646569567961,1.53289909,87.178,87.139,2.83613526]
[1646569569662,1.53289909,87.178,87.134,23.92839604]
[1646569571263,1.53289909,87.177,87.134,23.92839604]
[1646569573685,1.53289909,87.177,87.14,17.2167]
[1646569573885,1.53289909,87.179,87.14,17.2167]
[1646569574287,1.53289909,87.178,87.14,41.14483604]
[1646569574489,1.53289909,87.178,87.141,22.2661669]
[1646569574688,1.53289909,87.182,87.141,25.10230216]
[1646569574887,1.53289909,87.188,87.15,17.2117]
[1646569575086,1.53289909,87.189,87.15,17.2117]
[1646569575287,1.53289909,87.189,87.151,49.0304382]
[1646569575491,1.53289909,87.193,87.151,49.0304382]
[1646569575687,1.53289909,87.192,87.152,42.15463655]
[1646569576087,1.53289909,87.192,87.16,17.2131]
[1646569576286,1.53289909,87.192,87.161,60.83698152]
[1646569576488,23.4487,87.2,87.161,60.83698152]
[1646569576489,1.53289909,87.193,87.161,60.83698152]
[1646569576689,1.53289909,87.194,87.161,60.83698152]
[1646569577687,1.53289909,87.194,87.16,17.2131]
[1646569578288,1.53289909,87.193,87.16,17.2131]
[1646569578587,1.53289909,87.194,87.16,17.2131]
[1646569578787,1.53289909,87.194,87.161,56.02795385]
[1646569579489,1.53289909,87.194,87.161,58.86408911]
[1646569579689,1.53289909,87.195,87.161,58.86408911]
[1646569579888,1.53289909,87.194,87.161,58.86408911]
[1646569580091,1.53289909,87.195,87.161,58.86408911]
[1646569580290,1.53289909,87.195,87.161,64.59908911]
[1646569580695,1.53289909,87.194,87.161,64.59908911]
[1646569580896,1.53289909,87.194,87.161,8.57113526]
[1646569581096,1.53289909,87.194,87.161,2.83613526]
[1646569582898,1.53289909,87.193,87.161,2.83613526]
[1646569583098,1.53289909,87.194,87.161,2.83613526]
[1646569583299,1.53289909,87.194,87.161,26.7642713]
[1646569583501,1.53289909,87.195,87.161,26.7642713]
[1646569583699,1.53289909,87.196,87.161,26.7642713]
[1646569583899,1.53289909,87.195,87.161,26.7642713]
[1646569584100,1.53289909,87.196,87.162,5.735]
[1646569584901,1.53289909,87.196,87.161,26.7642713]
[1646569585402,1.53289909,87.195,87.161,26.7642713]
[1646569585601,1.53289909,87.195,87.161,42.15463655]
[1646569585802,1.53289909,87.194,87.161,42.15463655]
[1646569586401,1.53289909,87.195,87.161,42.15463655]
[1646569586602,1.53289909,87.193,87.161,42.15463655]
[1646569587004,1.53289909,87.194,87.161,42.15463655]
[1646569588105,1.53289909,87.194,87.162,5.735]
[1646569589107,1.53289909,87.195,87.162,5.735]
[1646569590109,1.53289909,87.196,87.163,2.83613526]
[1646569590311,1.53289909,87.196,87.164,5.735]
[1646569590708,1.53289909,87.196,87.165,2.83613526]
[1646569590908,54.56429948,87.209,87.166,5.735]
[1646569590909,1.53289909,87.195,87.166,5.735]
[1646569591111,1.53289909,87.192,87.165,2.83613526]
[1646569591711,1.53289909,87.193,87.161,15.39036525]
[1646569592811,1.53289909,87.194,87.161,15.39036525]
[1646569593011,1.53289909,87.194,87.162,5.735]
[1646569593211,1.53289909,87.195,87.162,5.735]
[1646569593612,1.53289909,87.194,87.162,5.735]
[1646569594213,1.53289909,87.195,87.162,5.735]
[1646569594813,1.53289909,87.195,87.162,29.66313604]
[1646569596017,1.53289909,87.194,87.162,23.92813604]
[1646569596417,1.53289909,87.192,87.162,23.92813604]
[1646569596617,1.53289909,87.194,87.162,23.92813604]
[1646569596817,1.53289909,87.193,87.162,23.92813604]
[1646569597220,1.53289909,87.192,87.162,23.92813604]
[1646569598219,1.53289909,87.191,87.163,2.83613526]
[1646569598419,1.53289909,87.192,87.163,2.83613526]
[1646569598619,1.53289909,87.192,87.163,26.7642713]
[1646569599119,1.53289909,87.192,87.164,8.57113526]
[1646569599519,1.53289909,87.192,87.165,2.83613526]
[1646569599822,1.53289909,87.192,87.166,5.735]
[1646569600020,1.53289909,87.191,87.166,5.735]
[1646569601322,1.53289909,87.19,87.166,5.735]
[1646569601722,1.53289909,87.189,87.166,5.735]
[1646569601920,6.27445702,87.208,87.166,5.735]
[1646569601921,1.53289909,87.19,87.166,5.735]
[1646569602124,1.53289909,87.189,87.166,5.735]
[1646569602521,1.53289909,87.19,87.166,5.735]
[1646569602922,1.53289909,87.189,87.166,5.735]
[1646569604325,1.53289909,87.186,87.166,4.735]
[1646569604524,1.53289909,87.185,87.166,4.735]
[1646569604926,1.53289909,87.186,87.166,4.735]
[1646569605124,1.53289909,87.186,87.17,17.2111]
[1646569605324,1.53289909,87.19,87.17,17.2111]
[1646569605525,1.53289909,87.19,87.171,2.83613526]
[1646569605825,24.9664,87.219,87.171,2.83613526]
[1646569605826,1.53289909,87.199,87.171,26.7642713]
[1646569606027,1.53289909,87.207,87.172,46.19430294]
[1646569606225,1.53289909,87.211,87.172,63.72747033]
[1646569606426,1.53289909,87.211,87.173,49.0304382]
[1646569606851,1.53289909,87.211,87.174,49.0304382]
[1646569607050,1.53289909,87.213,87.174,49.0304382]
[1646569607249,1.53289909,87.213,87.18,17.2089]
[1646569607451,1.53289909,87.218,87.181,114.7]
[1646569607650,1.53289909,87.22,87.181,179.46747033]
[1646569607949,1.53289909,87.22,87.183,114.7]
[1646569608149,1.53289909,87.221,87.185,114.7]
[1646569608348,46.43376367,87.237,87.185,114.7]
[1646569608349,1.53289909,87.225,87.185,114.7]
[1646569608550,1.53289909,87.225,87.187,114.7]
[1646569608949,1.53289909,87.225,87.189,114.7]
[1646569609149,1.53289909,87.225,87.191,114.7]
[1646569609349,1.53289909,87.225,87.19,18.57316739]
[1646569609549,1.53289909,87.225,87.19,2.83613526]
[1646569609850,1.53289909,87.225,87.192,18.57316739]
[1646569610249,1.53289909,87.225,87.2,17.2046]
[1646569610450,1.53289909,87.227,87.2,17.2046]
[1646569610650,1.53289909,87.226,87.193,18.57316739]
[1646569610850,1.53289909,87.225,87.193,18.57316739]
[1646569611049,1.53289909,87.224,87.193,18.57316739]
[1646569611250,1.53289909,87.224,87.194,2.83613526]
[1646569611451,1.53289909,87.225,87.194,2.83613526]
[1646569611849,1.53289909,87.222,87.194,2.83613526]
[1646569612249,1.53289909,87.218,87.18,15.73703213]
[1646569613452,1.53289909,87.217,87.18,15.73703213]
[1646569613751,6.27317085,87.234,87.18,15.73703213]
[1646569613752,1.53289909,87.214,87.18,15.73703213]
[1646569614153,1.53289909,87.215,87.18,15.73703213]
[1646569614953,1.53289909,87.214,87.18,15.73703213]
[1646569615155,1.53289909,87.215,87.18,15.73703213]
[1646569615653,1.53289909,87.214,87.18,15.73703213]
[1646569616055,1.53289909,87.207,87.178,2.83613526]
[1646569616654,58.88004991,87.206,87.178,2.83613526]
[1646569617455,60.412949,87.206,87.178,2.83613526]
[1646569618255,60.412949,87.206,87.178,26.77293797]
[1646569618757,58.88004991,87.206,87.178,26.77293797]
[1646569619958,1.53289909,87.208,87.18,17.2088]
[1646569620160,1.53289909,87.215,87.18,17.2088]
[1646569620361,1.53289909,87.222,87.181,42.5099701]
[1646569620559,1.53289909,87.223,87.181,42.5099701]
[1646569620758,1.53289909,87.223,87.182,42.5099701]
[1646569621058,63.63068843,87.222,87.183,42.5099701]
[1646569621459,63.63068843,87.222,87.184,18.57316739]
[1646569621460,62.09778934,87.222,87.184,18.57316739]
[1646569621658,63.63068843,87.222,87.184,18.57316739]
[1646569621860,63.63068843,87.222,87.185,42.5099701]
[1646569622261,62.09778934,87.222,87.19,17.2072]
[1646569622664,62.09778934,87.222,87.191,2.83613526]
[1646569623565,63.63068843,87.222,87.191,2.83613526]
[1646569625769,1.53289909,87.222,87.192,52.93042288]
[1646569625971,1.53289909,87.222,87.2,17.2052]
[1646569626172,1.53289909,87.227,87.2,17.2052]
[1646569626371,1.53289909,87.234,87.2,17.2052]
[1646569626570,1.53289909,87.235,87.201,64.776137]
[1646569626970,1.53289909,87.235,87.192,52.93042288]
[1646569626971,1.53289909,87.237,87.202,64.776137]
[1646569627370,1.53289909,87.238,87.203,42.5099701]
[1646569627775,1.53289909,87.238,87.202,28.3861669]
[1646569627776,1.53289909,87.238,87.204,42.5099701]
[1646569627971,1.53289909,87.238,87.21,17.2017]
[1646569628571,1.53289909,87.238,87.211,2.83613526]
[1646569629173,1.53289909,87.238,87.22,17.2009]
[1646569629372,60.13383693,87.241,87.22,17.2009]
[1646569629573,60.13383693,87.241,87.221,2.83613526]
[1646569629974,1.53289909,87.243,87.221,2.83613526]
[1646569630177,1.53289909,87.248,87.221,2.83613526]
[1646569630577,1.53289909,87.25,87.221,2.83613526]
[1646569631078,62.40331766,87.249,87.221,2.83613526]
[1646569631376,60.87041857,87.249,87.221,2.83613526]
[1646569631777,1.53289909,87.251,87.221,26.77293797]
[1646569632178,1.53289909,87.25,87.222,2.83613526]
[1646569632883,1.53289909,87.252,87.222,2.83613526]
[1646569633481,1.53289909,87.251,87.23,17.1992]
[1646569633680,1.53289909,87.262,87.23,17.1992]
[1646569633885,3.11954161,87.287,87.23,17.1992]
[1646569633886,1.53289909,87.265,87.231,2.83613526]
[1646569634083,1.53289909,87.265,87.231,26.77293797]
[1646569634284,1.53289909,87.268,87.231,26.77293797]
[1646569634482,3.11954161,87.292,87.24,17.1973]
[1646569634483,1.53289909,87.267,87.24,17.1973]
[1646569634686,54.73578028,87.274,87.24,17.1973]
[1646569634981,54.73578028,87.274,87.241,50.73326487]
[1646569635388,54.73578028,87.274,87.242,2.83613526]
[1646569635582,54.73578028,87.274,87.242,26.77293797]
[1646569635781,1.53289909,87.286,87.242,26.77293797]
[1646569635982,1.53289909,87.286,87.25,17.1938]
[1646569636383,1.53289909,87.291,87.251,2.83613526]
[1646569636586,1.53289909,87.292,87.251,2.83613526]
[1646569636981,62.94368162,87.291,87.251,2.83613526]
[1646569638284,62.94368162,87.291,87.26,17.1934]
[1646569638488,1.53289909,87.305,87.26,17.1934]
[1646569638684,24.4674,87.308,87.261,26.77293797]
[1646569638685,1.53289909,87.308,87.261,26.77293797]
[1646569638886,1.53289909,87.313,87.261,26.77293797]
[1646569639084,1.53289909,87.313,87.262,26.77293797]
[1646569639485,1.53289909,87.326,87.27,131.8885]
[1646569639885,1.53289909,87.34,87.271,66.470297]
[1646569640085,1.53289909,87.341,87.271,90.574897]
[1646569640309,1.53289909,87.343,87.272,42.5099701]
[1646569640486,5.726,87.342,87.272,18.57316739]
[1646569640691,1.53289909,87.339,87.273,2.83613526]
[1646569640889,5.726,87.338,87.273,2.83613526]
[1646569641286,29.2229,87.338,87.273,2.83613526]
[1646569641585,30.75579909,87.338,87.273,2.83613526]
[1646569641785,29.2229,87.338,87.273,2.83613526]
[1646569641985,29.2229,87.338,87.274,23.93680271]
[1646569642186,29.2229,87.338,87.28,17.1894]
[1646569642386,29.2229,87.338,87.281,57.22163824]
[1646569642586,29.2229,87.338,87.281,23.93680271]
[1646569643195,29.2229,87.338,87.29,17.1873]
[1646569643392,23.4969,87.338,87.29,17.1873]
[1646569643594,23.4969,87.338,87.291,58.00355903]
[1646569643794,50.45036954,87.342,87.291,105.90068864]
[1646569643992,1.53289909,87.35,87.292,26.77293797]
[1646569644196,22.7859,87.353,87.292,50.73326487]
[1646569644396,22.7859,87.353,87.293,26.77293797]
[1646569644598,22.7859,87.353,87.3,17.1833]
[1646569644999,63.44283851,87.352,87.3,20.01943526]
[1646569645201,63.44283851,87.352,87.301,23.93680271]
[1646569645704,63.44283851,87.352,87.31,17.1835]
[1646569645900,22.7859,87.353,87.31,17.1835]
[1646569646098,23.93,87.389,87.31,131.8835]
[1646569646099,1.53289909,87.367,87.31,131.8835]
[1646569646298,1.53289909,87.369,87.311,2.83613526]
[1646569646499,48.4029,87.389,87.311,2.83613526]
[1646569646500,1.53289909,87.37,87.311,2.83613526]
[1646569646702,1.53289909,87.369,87.32,17.1804]
[1646569646903,52.22516491,87.368,87.32,17.1804]
[1646569647913,52.22516491,87.368,87.32,34.545]
[1646569648113,52.22516491,87.368,87.32,40.895]
[1646569649716,52.22516491,87.368,87.32,23.5304]
[1646569649916,52.22516491,87.368,87.311,2.83613526]
[1646569650118,30.6122,87.367,87.311,2.83613526]
[1646569650521,30.23599791,87.367,87.311,2.83613526]
[1646569651924,30.23599791,87.367,87.297,2.83613526]
[1646569652122,1.53289909,87.365,87.285,15.73703213]
[1646569652321,1.53289909,87.351,87.269,2.83613526]
[1646569652721,114.7,87.349,87.269,2.83613526]
[1646569652922,114.7,87.339,87.268,15.73703213]
[1646569653121,114.7,87.337,87.268,15.73703213]
[1646569653321,114.7,87.335,87.268,15.73703213]
[1646569653524,114.7,87.333,87.262,23.93680271]
[1646569653720,114.7,87.331,87.262,23.93680271]
[1646569653921,162.20999911,87.331,87.263,2.83613526]
[1646569654220,114.7,87.329,87.263,26.77293797]
[1646569654421,114.7,87.327,87.263,23.93680271]
[1646569654621,1.53289909,87.32,87.246,2.83613526]
[1646569654822,114.7,87.318,87.241,23.9603269]
[1646569655021,114.7,87.316,87.241,23.9603269]
[1646569655220,114.7,87.314,87.241,23.9603269]
[1646569655421,114.7,87.312,87.241,23.9603269]
[1646569655622,114.7,87.31,87.241,23.9603269]
[1646569655823,5.728,87.309,87.241,23.9603269]
[1646569656025,5.729,87.313,87.242,2.83613526]
[1646569656726,5.729,87.313,87.243,23.9603269]
[1646569656926,1.53289909,87.311,87.243,45.73046294]
[1646569657130,23.3149,87.314,87.244,2.83613526]
[1646569657326,23.3149,87.314,87.244,63.87029699]
[1646569657527,23.3149,87.314,87.245,21.77013604]
[1646569657727,5.728,87.313,87.245,63.87029699]
[1646569657927,5.728,87.313,87.246,23.9603269]
[1646569658127,5.728,87.313,87.246,26.79646216]
[1646569658327,5.728,87.313,87.247,2.83613526]
[1646569658629,1.53289909,87.311,87.247,26.79646216]
[1646569658826,5.728,87.31,87.247,26.79646216]
[1646569659025,5.728,87.31,87.248,2.83613526]
[1646569659630,7.26089909,87.31,87.248,2.83613526]
[1646569659831,1.53289909,87.302,87.248,2.83613526]
[1646569660231,50.28819214,87.3,87.248,2.83613526]
[1646569661237,48.28819214,87.3,87.248,2.83613526]
[1646569661435,48.28819214,87.3,87.249,58.31284585]
[1646569662632,48.28819214,87.3,87.25,43.99176216]
[1646569662833,48.28819214,87.3,87.251,5.729]
[1646569663035,1.53289909,87.302,87.251,32.52546216]
[1646569663234,1.53289909,87.306,87.251,8.56513526]
[1646569663433,1.53289909,87.309,87.252,26.79646216]
[1646569663636,1.53289909,87.311,87.253,5.728]
[1646569663836,1.53289909,87.311,87.253,23.86783405]
[1646569664035,53.43755886,87.31,87.254,15.30369879]
[1646569664237,53.43755886,87.31,87.26,17.1931]
[1646569664435,53.43755886,87.31,87.261,5.728]
[1646569664634,53.43755886,87.31,87.255,8.56413526]
[1646569664835,53.43755886,87.31,87.262,2.83613526]
[1646569665034,53.43755886,87.31,87.263,54.9247231]
[1646569665436,53.43755886,87.31,87.264,2.83613526]
[1646569665635,53.43755886,87.31,87.27,17.1913]
[1646569665839,53.43755886,87.31,87.271,5.728]
[1646569666738,53.43755886,87.31,87.265,5.728]
[1646569667138,53.43755886,87.31,87.266,2.83613526]
[1646569667339,53.43755886,87.31,87.267,5.728]
[1646569667740,53.43755886,87.31,87.267,8.56413526]
[1646569668140,53.43755886,87.31,87.28,17.1892]
[1646569668342,53.43755886,87.31,87.281,5.727]
[1646569669445,53.43755886,87.31,87.28,17.1892]
[1646569670046,24.23469909,87.318,87.28,17.1892]
[1646569670648,1.53289909,87.318,87.28,17.1892]
[1646569670849,1.53289909,87.318,87.281,2.83613526]
[1646569671049,4.69732962,87.367,87.281,2.83613526]
[1646569671050,1.53289909,87.332,87.29,17.1847]
[1646569671549,1.53289909,87.33,87.291,2.83613526]
[1646569671748,1.53289909,87.331,87.292,5.726]
[1646569672147,56.86112406,87.331,87.293,57.79307255]
[1646569672648,56.86112406,87.331,87.294,2.83613526]
[1646569673247,1.53289909,87.333,87.3,17.1856]
[1646569673448,1.53289909,87.334,87.3,17.1856]
[1646569673648,1.53289909,87.333,87.3,17.1856]
[1646569673847,1.53289909,87.334,87.3,17.1856]
[1646569674078,1.53289909,87.336,87.3,17.1856]
[1646569674275,45.97220428,87.335,87.3,17.1856]
[1646569674974,1.53289909,87.337,87.3,17.1856]
[1646569675374,5.726,87.361,87.3,17.1856]
[1646569675375,1.53289909,87.338,87.3,17.1856]
[1646569677275,1.53289909,87.339,87.3,17.1856]
[1646569678274,1.53289909,87.339,87.301,5.726]
[1646569679779,1.53289909,87.338,87.301,5.726]
[1646569680178,1.53289909,87.337,87.301,5.726]
[1646569680778,1.53289909,87.337,87.281,5.726]
[1646569680981,1.53289909,87.326,87.27,2.83613526]
[1646569681179,1.53289909,87.322,87.264,5.726]
[1646569681380,1.53289909,87.321,87.264,5.726]
[1646569681781,1.53289909,87.322,87.27,17.1914]
[1646569681978,61.55045616,87.325,87.27,17.1914]
[1646569682187,61.55045616,87.325,87.271,63.86163033]
[1646569682578,61.55045616,87.325,87.273,64.69424927]
[1646569682880,61.55045616,87.325,87.274,44.98235903]
[1646569683081,1.53289909,87.335,87.28,17.1855]
[1646569683279,25.37589909,87.338,87.281,5.726]
[1646569683483,24.07279909,87.342,87.282,114.7]
[1646569683679,24.07279909,87.342,87.283,5.726]
[1646569683879,1.53289909,87.346,87.282,178.56163033]
[1646569684079,1.53289909,87.346,87.284,151.76516817]
[1646569684282,1.53289909,87.348,87.285,5.726]
[1646569684480,1.53289909,87.349,87.286,114.7]
[1646569684680,1.53289909,87.349,87.287,5.726]
[1646569684881,1.53289909,87.349,87.288,114.7]
[1646569685181,52.28510006,87.348,87.29,66.41857132]
[1646569685381,53.81799915,87.348,87.291,5.726]
[1646569685582,53.81799915,87.348,87.291,8.56213526]
[1646569685783,52.28510006,87.348,87.291,8.56213526]
[1646569685984,52.28510006,87.348,87.292,2.83613526]
[1646569686183,52.28510006,87.348,87.3,17.1821]
[1646569686383,52.28510006,87.348,87.301,5.724]
[1646569686584,52.28510006,87.348,87.301,8.56013526]
[1646569686787,52.28510006,87.348,87.301,5.724]
[1646569686987,52.28510006,87.348,87.302,2.83613526]
[1646569687787,1.53289909,87.346,87.302,2.83613526]
[1646569688190,53.81799915,87.348,87.31,17.1833]
[1646569688391,1.53289909,87.347,87.31,17.1833]
[1646569688587,1.53289909,87.346,87.31,17.1833]
[1646569689396,1.53289909,87.347,87.31,17.1833]
[1646569689591,1.53289909,87.345,87.31,17.1833]
[1646569689891,1.53289909,87.345,87.311,2.83613526]
[1646569690090,1.53289909,87.346,87.32,17.18]
[1646569690491,1.53289909,87.347,87.32,17.18]
[1646569690691,48.69075511,87.346,87.32,17.18]
[1646569691090,48.69075511,87.346,87.312,5.725]
[1646569691692,48.19075511,87.346,87.312,5.725]
[1646569691895,1.53289909,87.343,87.312,5.725]
[1646569692293,1.53289909,87.342,87.312,5.725]
[1646569692493,1.53289909,87.342,87.311,5.724]
[1646569692993,1.53289909,87.333,87.297,5.724]
[1646569693196,1.53289909,87.331,87.286,2.83613526]
[1646569693394,1.53289909,87.329,87.29,17.1862]
[1646569693594,1.53289909,87.328,87.29,17.1862]
[1646569693795,1.53289909,87.326,87.29,17.1862]
[1646569694595,1.53289909,87.326,87.29,12.1862]
[1646569694797,1.53289909,87.324,87.291,5.726]
[1646569695601,1.53289909,87.325,87.278,5.726]
[1646569695801,1.53289909,87.323,87.278,5.726]
[1646569696203,1.53289909,87.324,87.279,2.83613526]
[1646569696805,1.53289909,87.319,87.28,17.1897]
[1646569697010,1.53289909,87.318,87.27,5.727]
[1646569697406,1.53289909,87.318,87.263,5.727]
[1646569697608,46.94283394,87.317,87.263,5.727]
[1646569697807,1.53289909,87.315,87.264,2.83613526]
[1646569698007,1.53289909,87.315,87.265,5.728]
[1646569698206,1.53289909,87.314,87.27,17.1915]
[1646569698809,1.53289909,87.315,87.27,17.1915]
[1646569699707,1.53289909,87.314,87.27,17.1915]
[1646569700720,1.53289909,87.313,87.27,17.1915]
[1646569700920,1.53289909,87.312,87.27,17.1915]
[1646569701121,1.53289909,87.308,87.265,5.728]
[1646569701323,1.53289909,87.308,87.254,2.83613526]
[1646569701519,114.7,87.316,87.25,23.9603269]
[1646569701520,1.53289909,87.304,87.25,23.9603269]
[1646569701720,1.53289909,87.3,87.25,23.9603269]
[1646569701920,1.53289909,87.299,87.25,23.9603269]
[1646569702122,47.93080139,87.299,87.25,23.9603269]
[1646569702921,114.7,87.298,87.244,2.83613526]
[1646569703122,114.7,87.298,87.238,21.77013604]
[1646569703123,1.53289909,87.295,87.234,24.2525]
[1646569703322,1.53289909,87.288,87.234,23.7525]
[1646569703522,1.53289909,87.293,87.244,23.9603269]
[1646569703727,1.53289909,87.303,87.244,23.9603269]
[1646569703928,1.53289909,87.303,87.25,17.1916]
[1646569704323,49.27770634,87.302,87.251,98.14437504]
[1646569704734,49.27770634,87.302,87.252,48.5665982]
[1646569704926,49.27770634,87.302,87.26,17.1921]
[1646569705327,25.71749909,87.313,87.261,45.73046294]
[1646569705527,24.1846,87.313,87.261,48.5665982]
[1646569705726,24.1846,87.313,87.262,24.6062713]
[1646569705928,1.53289909,87.31,87.262,24.6062713]
[1646569706125,7.26089909,87.309,87.262,21.77013604]
[1646569706326,1.53289909,87.305,87.251,49.57777684]
[1646569706527,5.728,87.304,87.251,49.57777684]
[1646569706726,5.728,87.304,87.251,52.4139121]
[1646569706928,65.67459628,87.308,87.251,52.4139121]
[1646569707128,65.67459628,87.308,87.251,74.18404814]
[1646569707527,64.14169719,87.308,87.251,74.18404814]
[1646569708129,1.53289909,87.311,87.26,17.1939]
[1646569708332,57.3089,87.37,87.251,74.18404814]
[1646569708333,1.53289909,87.32,87.261,114.7]
[1646569708529,1.53289909,87.32,87.262,24.0092]
[1646569708729,1.53289909,87.32,87.262,69.73966294]
[1646569708935,1.53289909,87.32,87.262,50.80566216]
[1646569709231,1.53289909,87.32,87.27,17.1857]
[1646569709431,1.53289909,87.326,87.271,62.0238181]
[1646569709729,1.53289909,87.337,87.271,125.6688158]
[1646569709934,1.53289909,87.337,87.272,66.40628437]
[1646569710329,1.53289909,87.337,87.28,17.1826]
[1646569710530,63.64014023,87.336,87.28,17.1826]
[1646569710731,63.64014023,87.336,87.281,27.36755797]
[1646569710930,1.53289909,87.332,87.281,27.36755797]
[1646569711130,1.53289909,87.333,87.282,2.83613526]
[1646569711331,1.53289909,87.332,87.282,27.36755797]
[1646569711531,1.53289909,87.335,87.29,17.187]
[1646569711731,1.53289909,87.334,87.291,58.38090582]
[1646569712133,1.53289909,87.335,87.291,58.38090582]
[1646569712731,63.64014023,87.336,87.292,2.83613526]
[1646569713734,1.53289909,87.339,87.293,24.53142271]
[1646569713931,1.53289909,87.34,87.3,17.1853]
[1646569714131,1.53289909,87.344,87.3,17.1853]
[1646569714331,1.53289909,87.344,87.3,41.71672271]
[1646569714530,1.53289909,87.344,87.301,2.83613526]
[1646569714731,57.860371,87.343,87.301,2.83613526]
[1646569716235,1.53289909,87.344,87.31,17.1823]
[1646569716636,1.53289909,87.35,87.311,117.53613526]
[1646569716834,1.53289909,87.36,87.311,142.06755797]
[1646569717133,23.8226,87.383,87.311,142.06755797]
[1646569717134,1.53289909,87.377,87.312,52.08215797]
[1646569717333,61.46125935,87.37,87.313,57.14248848]
[1646569717534,61.46125935,87.37,87.313,123.54877285]
[1646569717734,61.46125935,87.37,87.314,24.53142271]
[1646569717933,61.46125935,87.37,87.315,114.7]
[1646569718133,61.46125935,87.37,87.32,17.1756]
[1646569718533,61.46125935,87.37,87.321,24.53142271]
[1646569718834,61.46125935,87.37,87.321,51.32788487]
[1646569719032,61.46125935,87.37,87.322,26.79646216]
[1646569719232,1.53289909,87.376,87.323,114.7]
[1646569719436,1.53289909,87.376,87.33,17.1761]
[1646569719833,1.53289909,87.38,87.33,17.1761]
[1646569720034,23.8226,87.383,87.331,27.36755797]
[1646569720243,1.53289909,87.386,87.332,174.04369628]
[1646569720439,1.53289909,87.393,87.332,225.37158115]
[1646569720637,51.80664639,87.395,87.334,114.7]
[1646569721033,51.80664639,87.395,87.336,114.7]
[1646569721233,51.80664639,87.395,87.34,17.1754]
[1646569721633,51.80664639,87.395,87.341,139.23142271]
[1646569721833,51.80664639,87.395,87.341,166.02788487]
[1646569722034,51.80664639,87.395,87.343,114.7]
[1646569722234,1.53289909,87.403,87.35,17.1719]
[1646569722435,1.53289909,87.406,87.35,17.1719]
[1646569722634,1.53289909,87.409,87.351,139.23142271]
[1646569722835,1.53289909,87.416,87.351,142.06755797]
[1646569723038,23.5379,87.418,87.352,42.44595747]
[1646569723242,1.53289909,87.422,87.352,42.44595747]
[1646569723243,46.39185946,87.415,87.36,17.1724]
[1646569723439,46.39185946,87.415,87.361,114.7]
[1646569723640,46.39185946,87.415,87.361,139.23142271]
[1646569723840,46.39185946,87.415,87.362,24.53142271]
[1646569724044,46.39185946,87.415,87.362,27.36755797]
[1646569724242,46.39185946,87.415,87.363,140.13366024]
[1646569724442,46.39185946,87.415,87.363,52.80121821]
[1646569724642,46.39185946,87.415,87.364,52.80121821]
[1646569725043,46.39185946,87.415,87.365,27.36755797]
[1646569725241,46.39185946,87.415,87.365,2.83613526]
[1646569726443,46.39185946,87.415,87.366,24.53142271]
[1646569726643,46.39185946,87.415,87.365,2.83613526]
[1646569726843,46.39185946,87.415,87.367,2.83613526]
[1646569727245,46.39185946,87.415,87.37,17.1711]
[1646569727642,46.39185946,87.415,87.371,2.83613526]
[1646569728642,46.39185946,87.415,87.38,17.1688]
[1646569729343,5.72,87.414,87.371,27.36755797]
[1646569729744,46.39185946,87.415,87.371,27.36755797]
[1646569729945,23.3402,87.437,87.371,27.36755797]
[1646569730148,23.3402,87.437,87.372,27.67266216]
[1646569730551,23.3402,87.437,87.373,27.36755797]
[1646569731046,59.23368088,87.436,87.374,74.77639692]
[1646569731449,59.23368088,87.436,87.375,27.36755797]
[1646569731846,59.23368088,87.436,87.376,24.53142271]
[1646569732047,59.23368088,87.436,87.376,27.36755797]
[1646569732245,1.53289909,87.446,87.381,114.7]
[1646569732446,5.719,87.445,87.381,114.7]
[1646569732656,5.719,87.445,87.383,114.7]
[1646569732849,5.719,87.463,87.383,114.7]
[1646569733049,24.4552,87.481,87.377,24.2998]
[1646569733050,5.719,87.467,87.385,114.7]
[1646569733246,54.52537449,87.462,87.402,114.7]
[1646569733447,54.52537449,87.462,87.401,59.35402372]
[1646569733647,54.52537449,87.462,87.403,2.83613526]
[1646569734747,54.52537449,87.462,87.41,17.1606]
[1646569735347,54.52537449,87.462,87.401,76.35402372]
[1646569736152,24.0302,87.461,87.401,79.19015898]
[1646569736352,5.719,87.46,87.401,79.19015898]
[1646569736751,5.719,87.46,87.41,17.1632]
[1646569737855,7.25189909,87.46,87.41,17.1632]
[1646569738554,1.53289909,87.459,87.41,17.1632]
[1646569739059,5.719,87.46,87.411,2.83613526]